Cogmind - Beta 16 @@@ ROGUE MODE // 2026.01.03 @ 16:03:54 Player: terminate1600 Result: Smashed by cave-in Performance ------------- Evolutions (0) 0 Regions Visited (1) 200 Robots Destroyed (5) 25 Value Destroyed (143) 143 Prototype IDs (0) 0 Alien Tech Used (0) 0 Bonus (0) 0 TOTAL SCORE: 368 Bonus ------- None Cogmind --------- Core Integrity 0/250 Matter 241/300 Energy 100/100 System Corruption 28% Temperature Cool (0) Movement Core (50) Location -10/Materials Parts ------- > --- POWER (1) -------- (None) > --- PROPULSION (2) --- (None) > --- UTILITY (2) ------ (None) > --- WEAPON (2) ------- Welding Torch > --- INVENTORY (5) ---- (None) Peak State ------------ > --- POWER ------------ Light Ion Engine > --- PROPULSION ------- Wheel Wheel > --- UTILITY ---------- Seismic Detector > --- WEAPON ----------- Medium Laser Mining Laser > --- INVENTORY -------- Wheel Wheel EM Pulse Gun Light Assault Rifle [Rating: 6] Favorites ----------- Power Light Ion Engine Engine Light Ion Engine Propulsion Wheel Wheel Wheel Utility Seismic Detector Device Seismic Detector Weapon Mining Laser Energy Gun Medium Laser Ballistic Gun Light Assault Rifle Special Weapon Mining Laser Build | -11 -10 ------- Run | Yrd Mat Slots Evolved . | . . Power . | . . Propulsion . | . . Utility . | . . Weapon . | . . Parts Attached 11 | 8 3 Power 1 | 1 . Engine 1 | 1 . Core . | . . Reactor . | . . Propulsion 4 | 3 1 Treads . | . . Leg . | . . Wheel 4 | 3 1 Hover . | . . Flight . | . . Utility 1 | 1 . Device 1 | 1 . Storage . | . . Processor . | . . Hackware . | . . Protection . | . . Artifact . | . . Weapon 5 | 3 2 Energy Gun 2 | 1 1 Energy Cannon . | . . Ballistic Gun 1 | 1 . Ballistic Cannon . | . . Launcher . | . . Special Weapon 2 | 1 1 Impact Weapon . | . . Slashing Weapon . | . . Piercing Weapon . | . . Special Melee Weapon . | . . Unidentified Prototypes . | . . Parts Lost 10 | . 10 Power 1 | . 1 Propulsion 4 | . 4 Utility 1 | . 1 Weapon 4 | . 4 Highest Loss Streak 4 | . 4 To Critical Strikes . | . . Average Backups 3 | 2 3 Power . | . . Propulsion 1 | . 1 Utility . | . . Weapon 1 | 1 1 Tool/Special . | . . Unused Backups 1 | . 1 Power . | . . Propulsion . | . . Utility . | . . Weapon . | . . Tool/Special 1 | . 1 Average Slot Usage (%) 49 | . 49 Engine 3 | . 3 Wheel 18 | . 18 Device 3 | . 3 Energy Gun 11 | . 11 Ballistic Gun 1 | . 1 Special Weapon 11 | . 11 Peak Build Rating 6 | 6 6 Average Rating 3 | 4 3 On Entrance 3 | . 6 Avg Prop Armor Cover (%) . | . . Naked Turns 15 | . 15 Heaviest Build 7 | 7 7 Greatest Support 20 | 20 20 Greatest Overweight (x) . | . . Average Overweight (x) . | . . Largest Inventory Capacity 5 | 5 5 Average Capacity 5 | 5 5 Most Carried 5 | 5 5 Average Carried 3 | 2 3 Final Capacity 5 | 5 5 Final Carried 4 | 4 . Class Distribution -------------------- 100% | Mutant Dominant Class ---------------- Mutant | -10/Materials Resources | -11 -10 ----------- Run | Yrd Mat Matter Collected 315 | 282 33 Remotely . | . . Salvage Created 211 | 70 141 Parts 11 | 6 5 Haulers Intercepted . | . . Recyclers Shooed . | . . Parts Field Recycled . | . . Retrieved Matter . | . . Parts Self-Destructed . | . . Prevented . | . . Parts Restored . | . . Kills | -11 -10 ------- Run | Yrd Mat Combat Hostiles Destroyed 4 | 1 3 Guns 4 | 1 3 Classes Destroyed 2 | 2 . Tunneler 1 | 1 . Grunt 4 | 1 3 Best Kill Streak 2 | 2 2 Combat Bots Only 2 | 1 2 Max Kills in Single Turn 2 | 2 1 Gunslinging . | . . Exploded . | . . Melee . | . . Uniques/NPCs Destroyed . | . . Combat | -11 -10 -------- Run | Yrd Mat Hostile Shots Fired 47 | 7 40 Missed 10 | 2 8 Hits 37 | 5 32 Projectile 37 | 5 32 Damage Taken 935 | 55 880 Core 266 | 21 245 Absorbed by Shields . | . . Core Remaining (%) 91 | 91 . Volleys Fired 75 | 17 58 Largest 2 | 2 2 Hottest 150 | 150 150 Shots Fired 119 | 29 90 Gun 85 | 22 63 Cannon . | . . Launcher . | . . Special 34 | 7 27 Kinetic 20 | 5 15 Thermal 75 | 24 51 Explosive . | . . Electromagnetic 24 | . 24 Robot Hit Streak 9 | 3 9 Robot Miss Streak 3 | 3 1 Penetration Max . | . . Secondary Targets 1 | . 1 Max Gunslinging Chain 1 | . 1 Shots Hit Robots 24 | 5 19 Core Hits 9 | 3 6 Critical Kills . | . . Critical Parts Destroyed . | . . Critical Strikes 1 | . 1 Burn 1 | . 1 Melee Attacks . | . . Impact . | . . Slashing . | . . Piercing . | . . Sneak Attacks . | . . Combat Hostiles . | . . Follow-up Attacks . | . . Damage Inflicted 283 | 65 218 Guns 283 | 65 218 Cannons . | . . Explosions . | . . Melee . | . . Ramming . | . . Kinetic 95 | 16 79 Thermal 135 | 49 86 Explosive . | . . Electromagnetic 53 | . 53 Impact . | . . Slashing . | . . Piercing . | . . Highest Corruption 28 | . 28 Average Corruption 11 | . 11 Corruption Purged . | . . Corruption Blocked . | . . Effects 12 | . 12 Message Errors 4 | . 4 Matter Fused 3 | . 3 Energy Discharges 1 | . 1 Data Loss (minor) 3 | . 3 Data Loss (major) 1 | . 1 Overload Shots . | . . Overflow Damage . | . . Projectiles . | . . Explosions . | . . Melee . | . . Knockbacks . | . . Impact . | . . Kinetic . | . . Secondary . | . . Self-Inflicted Damage . | . . Shots . | . . Rammed . | . . Targets Rammed . | . . Kicked . | . . Crushed . | . . Highest Temperature 310 | 310 100 Average Temperature 58 | 128 26 Received Heat Transfer 222 | 30 192 Siege Activations . | . . Martial Activations . | . . Shielding Activations . | . . Robots Disrupted . | . . Combat Hostiles . | . . Robots Corrupted . | . . Combat Hostiles . | . . Parts Fried . | . . Impact Corruptions . | . . Robots Melted . | . . Combat Hostiles . | . . Parts Melted . | . . Heat Transferred 481 | 148 333 Parts Sabotaged . | . . Parts Stolen . | . . Parts Stripped . | . . Power Chain Reactions . | . . Alert | -11 -10 ------- Run | Yrd Mat Maximum Alert Level . | . . Low Security (%) 100 | 100 100 Level 1 . | . . Level 2 . | . . Level 3 . | . . Level 4 . | . . Level 5 . | . . High Security . | . . Max Security . | . . Peak Influence 40 | 25 40 Initial . | . . Average 4 | 5 4 Influence Increases 101 | 25 76 Destroy 0b10 Robot/C 80 | 20 60 Destroy 0b10 Robot/NC 5 | 5 . Destroy Leader 10 | . 10 Destroy Structure 6 | . 6 Influence Decreases 101 | 25 76 Time Decay 81 | 25 56 Lost Part 20 | . 20 Squads Dispatched 2 | . 2 Investigation 1 | . 1 Extermination . | . . Reinforcement 1 | . 1 Assault . | . . Garrison . | . . Intercept . | . . Searches Triggered . | . . Construction Impeded . | . . Haulers Reinforced . | . . Active Scanning Responses . | . . Cargo Convoy Interrupts . | . . Stealth | -11 -10 --------- Run | Yrd Mat Distress Signals . | . . Communications Jammed . | . . Distress Signals . | . . Times Spotted 5 | 1 4 Peak Tracking Total 3 | 1 3 Tactical Retreats . | . . Traps | -11 -10 ------- Run | Yrd Mat Traps Triggered 1 | . 1 Indirectly . | . . Trap Hack Attempts . | . . Triggered . | . . Disarmed . | . . Reprogrammed . | . . Reused . | . . Traps Extracted . | . . Installed . | . . Triggered . | . . Machines | -11 -10 ---------- Run | Yrd Mat Machines Disabled . | . . Max in Single Turn . | . . Machines Repaired . | . . Machines Dismantled . | . . Machines Sabotaged . | . . Overloaded Fab Kills . | . . Hacking | -11 -10 --------- Run | Yrd Mat Machines Accessed . | . . Terminals . | . . Fabricators . | . . Repair Stations . | . . Recycling Units . | . . Scanalyzers . | . . Garrison Access . | . . Total Hacks . | . . Successful . | . . Failed . | . . Catastrophic . | . . Database Lockouts . | . . Manual . | . . Terminals . | . . Fabricators . | . . Repair Stations . | . . Recycling Units . | . . Scanalyzers . | . . Garrison Access . | . . Terminal Hacks . | . . Fabricator Hacks . | . . Repair Station Hacks . | . . Recycling Unit Hacks . | . . Scanalyzer . | . . Garrison Access Hacks . | . . Unauthorized Hacks . | . . Terminals . | . . Fabricators . | . . Repair Stations . | . . Recycling Units . | . . Scanalyzers . | . . Garrison Access . | . . Data Cores Recovered . | . . Used . | . . Hacking Detections . | . . Full Trace Events . | . . Feedback Events . | . . Feedback Blocked . | . . Robot Schematics Acquired . | . . Robots Built . | . . Authchips . | . . Time . | . . Total Robot Build Rating . | . . Part Schematics Acquired . | . . Parts Built . | . . Authchips . | . . Time . | . . Total Part Build Rating . | . . Part Studies Acquired . | . . Parts Repaired . | . . Time . | . . Parts Recycled . | . . Recycled Matter . | . . Retrieved Matter . | . . Retrieved Components . | . . Parts Scanalyzed . | . . Part Schematics Acquired . | . . Parts Damaged . | . . Bothacking | -11 -10 ------------ Run | Yrd Mat Used RIF Installer . | . . Robots Hacked . | . . Non-combat . | . . Combat . | . . Robot Hacks Applied . | . . Relay Couplers Released . | . . Fabnet Peak Effective % . | . . Robots Rewired . | . . Allies Hacked . | . . Hacks Repelled . | . . Allies | -11 -10 -------- Run | Yrd Mat Total Allies . | . . Largest Group . | . . Highest-Rated Group . | . . Highest-Rated Ally . | . . Total Orders . | . . Ally Attacks . | . . Total Damage . | . . Kills . | . . Allies Corrupted . | . . Allies Melted . | . . Intel | -11 -10 ------- Run | Yrd Mat Active Infowar (turns) 156 | 58 98 Seismic 156 | 58 98 Robot Analysis Total . | . . Derelict Logs Recovered . | . . Drone Launches . | . . Drone Recoveries . | . . Exploration | -11 -10 ------------- Run | Yrd Mat Turns Passed 566 | 140 426 Spaces Moved 183 | 86 97 Core 29 | 24 5 Treads . | . . Legs . | . . Wheels 154 | 62 92 Hover . | . . Flight . | . . Fastest Speed 50 | 50 50 Average Speed 75 | 71 78 Slowest Speed 80 | 80 80 Overloaded Moves . | . . Propulsion Burnouts . | . . Robots Hopped . | . . Potential Cave-ins 10 | . 10 Cave-ins Triggered 8 | . 8 Exploration Rate (%) 9 | 8 10 Regions Visited 1 Branch Regions . Pre-discovered Areas . | . . Known Exits Taken . | . . Unknown Exits Taken 1 | 1 . Scrap Searched . | . . Spaces Dug 19 | 6 13 Terrain Destroyed 19 | 6 13 Melee . | . . Projectile 19 | 6 13 AOE . | . . Terrain Rammed . | . . Walls Destroyed . | . . Machines Disabled . | . . Actions | -11 -10 --------- Run | Yrd Mat Total 453 | 121 332 Wait 162 | 1 161 Move 181 | 85 96 Hop . | . . Pick Up 13 | 10 3 Fast Attach . | . . Attach 12 | 6 6 Detach . | . . Swap 6 | 2 4 Drop 3 | . 3 Fire 75 | 17 58 Melee . | . . Ram . | . . Kick . | . . Crush . | . . Escape Stasis 1 | . 1 Rewire . | . . Trap . | . . Miscellaneous . | . . Route ------- -11/Scrapyard -10/Materials History --------- Turn | Location | Event 2 | -11/Scrapyard | Met Revision 17 47 | -11/Scrapyard | Discovered new exit (range 8) 141 | -11/Scrapyard | Entered Materials 239 | -10/Materials | Crushed by falling debris 306 | -10/Materials | Build established: Mutant 307 | -10/Materials | Core integrity fell below 50% 473 | -10/Materials | Crushed by falling debris 484 | -10/Materials | Crushed by falling debris 484 | -10/Materials | System corruption reached 10% 503 | -10/Materials | Crushed by falling debris 507 | -10/Materials | Crushed by falling debris 508 | -10/Materials | Core integrity fell below 20% 534 | -10/Materials | Lost 4 parts (1n3w) 536 | -10/Materials | Crushed by falling debris 559 | -10/Materials | Crushed by falling debris 568 | -10/Materials | Crushed by falling debris 568 | -10/Materials | Smashed by cave-in Last Messages --------------- Lgt. Assault Rifle destroyed. System corrupted by crushing effect (+4). EM Pulse Gun destroyed. System corrupted by crushing effect (+3). The unstable cave ceiling collapses. Crushed by falling debris. System corrupted: Matter fused (-7). EXBC,:SZ>ML5 MIIJGS&UD0HTYLB9U4TZI<00N The unstable cave ceiling collapses. Crushed by falling debris. Wheel destroyed. System corrupted by crushing effect (+2). System corrupted: Component data lost. The unstable cave ceiling collapses. Crushed by falling debris. Wheel destroyed. System corrupted by crushing effect (+5). NK 3CJ>QFD%4Z5T The unstable cave ceiling collapses. Crushed by falling debris. Map ----- +----------------------------------------------------+ | | | | | | | | | | | | | | | | | | | | | | | | | | | | | | | | | | | | | | | | | | | | | | | | | ????????????###############??????????????????????? | | ????????????# "T" ###@#??????????????????????? | | ????????????# #####??????????????????????? | | ????????????# % #####??????????????????????? | | ????????????# % #####??????????????????????? | | ??????###########+##################+#???????????? | | ??????# | | ????????? | | ??????# = ????????? | | ??????# T [%= ????????? | | ??????####+####### ########### ?????????? | | ?????????????????# #????????????????????? | | ?????????????????# #????????????????????? | | ?????????????????# #????????????????????? | | ?????????????????# """ #????????????????????? | | ?????????????????# """ + ???????????????????? | | ?????????????????# """ # "??????????????????? | | ?????????????????# #?"??????????????????? | | ?????????????????# #????????????????????? | | ?????????????????# #????????????????????? | | ?????????????????# #????????????????????? | | ?????????????????# !! #????????????????????? | | ?????????????????# !! #????????????????????? | | ?????????????????# !? ?????????????????????? | | ???????????????????#?????????????????????????????? | | ?????????????????????????????????????????????????? | | ?????????????????????????????????????????????????? | +----------------------------------------------------+ Best States ------------- Heat Dissipation 25 Energy Generation 10 Energy Capacity 125 Matter Stores 300 Matter Capacity 300 Sight Range 16 Terrain Scan Density 10 Evasion (%) 44 Item Schematics ----------------- None Robot Schematics ------------------ None Fabricated ------------ Nothing Repaired ---------- Nothing Studied --------- None Alien Tech Used ----------------- None Achievements -------------- DATA ERROR: Steam Global Achievement% System Compromised Unlikely Earthworm Challenges ------------ None Game ------ Seed AluminumPlasmaStorm Manual? 0 Play Time 00:15:12 Cumulative 0.6 hours Start 2026.01.03 @ 15:50:13 End 2026.01.03 @ 16:03:54 Sessions 1 Manual Loads 0 Difficulty Rogue Special Mode None Game No. 2 Rogue 2 Adventurer 0 Explorer 0 Win Type - Total 0 Types 0/0/0/0/0/0/0/0/0/0 Lore% 0 Gallery% 1 Achievement% 1 Wizard Run 0 Options --------- Layout 1 ASCII 0 Keyboard 0 Movement Mouse Keybinds 0 Fullscreen 2 Font 32/SmallcapsGlow Map View 77x35 Zoom Use 0% Tactical HUD 0 Map Filters NONE Filters NONE Steam 1 RUN: ba782569-ee9e-4562-9bdb-4d3ed4126d50